fUSD/lending_fUSD_20240718
["ID","MTS","AMOUNT","RATE_DAILY","PERIOD"]
[332575437,1721304632522,-151.42828929,0.00025527,2]
[332575438,1721304632532,-292.84717868,0.00025566,2]
[332575439,1721304632542,-166.66666667,0.00025572,2]
[332575440,1721304632551,-156.45325113,0.00025675,2]
[332575441,1721304632561,-152.91136508,0.00025789,2]
[332575442,1721304632570,-153.50621038,0.00025847,2]
[332575443,1721304632580,-166.66666666,0.00025948,2]
[332575444,1721304632591,-153.54583878,0.00026187,2]
[332575445,1721304632601,-152.91136508,0.00026236,2]
[332575446,1721304632611,-292.84717868,0.00026613,2]
[332575447,1721304632810,-350.3,0.00026735,2]
[332575448,1721304632838,-151.63,0.00026778,2]
[332575449,1721304632849,-292.84717868,0.00026795,2]
[332575450,1721304632858,-153.54583878,0.00026881,2]
[332575451,1721304632868,-221.50002956,0.000269,30]
[332575452,1721304632878,-2000.0,0.00027,2]
[332575453,1721304632887,-3100.940972,0.0002701,2]
[332575454,1721304632897,-500.0,0.00027108,2]
[332575455,1721304632907,-500.0,0.00027117,2]
[332575456,1721304632917,-500.0,0.00027125,2]
[332575457,1721304632926,-500.0,0.00027134,2]
[332575458,1721304632936,-167.0,0.00027135,2]
[332575459,1721304632946,-152.22497455,0.00027141,2]
[332575460,1721304632955,-500.0,0.00027143,2]
[332575461,1721304632965,-500.0,0.00027152,2]
[332575462,1721304632974,-500.0,0.00027161,2]
[332575463,1721304632984,-500.0,0.00027169,2]
[332575464,1721304632994,-500.0,0.00027178,2]
[332575465,1721304633003,-500.0,0.00027187,2]
[332575466,1721304633013,-500.0,0.00027196,2]
[332575467,1721304633023,-500.0,0.00027205,2]
[332575468,1721304633032,-500.0,0.00027213,2]
[332575469,1721304633042,-500.0,0.00027222,2]
[332575470,1721304633052,-500.0,0.00027231,2]
[332575471,1721304633062,-500.0,0.0002724,2]
[332575472,1721304633072,-500.0,0.00027249,2]
[332575473,1721304633082,-500.0,0.00027257,2]
[332575474,1721304633092,-500.0,0.00027266,2]
[332575475,1721304633103,-500.0,0.00027275,2]
[332575476,1721304633112,-500.0,0.00027284,2]
[332575477,1721304633123,-5605.08175338,0.00027292,2]
[332575478,1721304633133,-500.0,0.00027293,2]
[332575479,1721304633143,-500.0,0.00027301,2]
[332575480,1721304633152,-500.0,0.0002731,2]
[332575481,1721304633162,-500.0,0.00027319,2]
[332575482,1721304633172,-500.0,0.00027328,2]
[332575483,1721304633181,-163.66,0.00027397,10]
[332575484,1721304633190,-160.96479367,0.00027506,2]
[332575485,1721304633200,-223.97,0.00027702,120]
[332575486,1721304633210,-367.02,0.00027714,2]
[332575487,1721304633219,-166.66666667,0.00027735,2]
[332575488,1721304633229,-292.84717868,0.00028145,2]
[332575489,1721304633240,-153.54583878,0.00028173,2]
[332575490,1721304633249,-1000.0,0.00028196,2]
[332575491,1721304633259,-156.45325113,0.00028218,2]
[332575492,1721304633269,-161.35093905,0.00028219,2]
[332575493,1721304633279,-156.0911654,0.00028226,2]
[332575494,1721304633288,-292.84717868,0.00028379,2]
[332575495,1721304633298,-292.84717868,0.00028759,2]
[332575496,1721304633309,-157.49799235,0.00028858,2]
[332575497,1721304633323,-157.49799235,0.0002895,2]
[332575498,1721304633333,-153.54583878,0.00029031,2]
[332575499,1721304633343,-151.63,0.00029042,2]
[332575500,1721304633352,-153.50621038,0.00029174,2]
[332575501,1721304633364,-350.3,0.00029408,2]
[332575502,1721304633375,-153.54583878,0.00029493,2]
[332575503,1721304633386,-292.84717868,0.0002962,2]
[332575504,1721304633396,-161.89626353,0.00029751,2]
[332575505,1721304633406,-156.0911654,0.00029816,2]
[332575506,1721304633415,-166.66666667,0.00029849,2]
[332575507,1721304633425,-152.22497455,0.00029958,2]
[332575508,1721304633434,-200.0,0.0003,120]
[332575509,1721304633443,-250.0,0.00030025,4]
[332575510,1721304633454,-153.89918918,0.00030026,7]
[332575511,1721304633463,-155.85175389,0.00030354,7]
[332575512,1721304633473,-223.97,0.00030472,120]
[332575513,1721304633482,-152.91136508,0.00030535,7]
[332575514,1721304633491,-155.85175389,0.00030633,7]
[332575515,1721304633501,-156.0911654,0.0003067,7]
[332575516,1721304633510,-151.42828929,0.00030689,7]
[332575517,1721304633520,-156.0911654,0.00030801,7]
[332575518,1721304633529,-1000.0,0.00031016,2]
[332575519,1721304633539,-153.54583878,0.00031103,7]
[332575520,1721304633549,-156.45325113,0.0003115,7]
[332575521,1721304633559,-151.63,0.00031306,2]
[332575522,1721304633568,-157.03911617,0.0003137,7]
[332575523,1721304633578,-160.96479367,0.00031522,7]
[332575524,1721304633588,-151.42828929,0.00031545,7]
[332575525,1721304633597,-152.91136508,0.00031605,7]
[332575526,1721304633606,-250.0,0.000318,2]
[332575527,1721304633615,-153.89918918,0.00031804,7]
[332575528,1721304633628,-160.96479367,0.00031947,7]
[332575529,1721304633638,-160.96479367,0.00031979,7]
[332575530,1721304633647,-153.54583878,0.00031989,7]
[332575531,1721304633657,-350.3,0.00032082,2]
[332575532,1721304633666,-199.106,0.00032266,2]
[332575533,1721304633675,-193.746,0.00032266,2]
[332575534,1721304633685,-205.987,0.00032266,2]
[332575535,1721304633694,-150.0,0.00032266,2]
[332575536,1721304633704,-620.0,0.00032266,2]
[332575537,1721304633714,-549.0,0.00032266,2]
[332575538,1721304633724,-2380.0,0.00032266,2]
[332575539,1721304633733,-1992.0,0.00032266,2]
[332575540,1721304633743,-831.02161238,0.00032317,14]
[332575541,1721304633753,-153.0,0.00032525,2]
[332575542,1721304633763,-153.0,0.00032525,2]
[332575543,1721304633772,-153.89918918,0.00032579,7]
[332575544,1721304633782,-156.45325113,0.00032587,7]
[332575545,1721304633791,-157.49799235,0.0003267,7]
[332575546,1721304633801,-160.96479367,0.00032784,7]
[332575547,1721304633810,-153.89918918,0.00032986,7]
[332575548,1721304633820,-637.617621,0.00033,14]
[332575549,1721304633830,-151.42828929,0.00033098,7]
[332575550,1721304633839,-195.12,0.00033151,120]
[332575551,1721304633849,-3000.0,0.000332,2]
[332575552,1721304633858,-223.97,0.00033242,120]
[332575553,1721304633868,-156.45325113,0.00033259,7]
[332575554,1721304633879,-151.63,0.0003357,2]
[332575555,1721304633889,-600.0,0.00033664,17]
[332575556,1721304633899,-152.22497455,0.00033693,7]
[332575557,1721304633908,-1796.0,0.000337,2]
[332575558,1721304633918,-367.02,0.00033785,2]
[332575559,1721304633928,-1000.0,0.00033836,2]
[332575560,1721304633938,-156.0911654,0.00033864,7]
[332575561,1721304633948,-152.22497455,0.0003396,7]
[332575562,1721304633958,-156.0911654,0.00033968,7]
[332575563,1721304633968,-153.50621038,0.00033973,7]
[332575564,1721304633978,-156.0911654,0.00033986,7]
[332575565,1721304633988,-246.5,0.00034,120]
[332575566,1721304633997,-557.69598799,0.00034,2]
[332575567,1721304634007,-6739.3533,0.00034146,2]
[332575568,1721304634018,-1019.08,0.00034193,14]
[332575569,1721304634028,-157.03911617,0.00034194,7]
[332575570,1721304634038,-200.01,0.00034214,120]
[332575571,1721304634047,-816.32,0.00034246,60]
[332575572,1721304634058,-156.45325113,0.00034246,7]
[332575573,1721304634067,-564.22,0.00034246,60]
[332575574,1721304634077,-101529.0577,0.00034258,2]
[332575575,1721304634086,-282.7298,0.00034258,2]
[332575576,1721304634096,-7500.0,0.00034258,2]
[332575577,1721304634106,-153.50621038,0.00034263,7]
[332575578,1721304634115,-173.0802734,0.00034299,4]
[332575579,1721304634126,-2000.0,0.00034358,2]
[332575580,1721304634136,-500.0,0.00034358,2]
[332575581,1721304634146,-988.4685,0.00034358,2]
[332575582,1721304634155,-1000.0,0.00034358,2]
[332575583,1721304634165,-86275.6503,0.00034358,2]
[332575584,1721304634175,-1000.0,0.00034358,2]
[332575585,1721304634185,-292.84717868,0.00034421,7]
[332575586,1721304634194,-153.54583878,0.00034422,7]
[332575587,1721304634204,-10000.0,0.00034463,7]
[332575588,1721304634214,-239.52750022,0.0003449,5]
[332575589,1721304634224,-153.89918918,0.00034496,7]
[332575590,1721304634233,-100000.0,0.000345,2]
[332575591,1721304634242,-281.1116,0.00034508,2]
[332575592,1721304634252,-816.32,0.0003452,62]
[332575593,1721304634261,-564.22,0.0003452,62]
[332575594,1721304634270,-385.08664704,0.00034575,2]
[332575595,1721304634280,-7144.93456917,0.00034584,30]
[332575596,1721304634288,-500.0,0.00034719,10]
[332575597,1721304634298,-200.0,0.00034719,10]
[332575598,1721304634308,-500.0,0.0003472,10]
[332575599,1721304634321,-500.0,0.0003472,10]
[332575600,1721304634330,-200.0,0.0003472,10]
[332575601,1721304634340,-292.84717868,0.00034759,7]
[332575602,1721304634350,-816.32,0.00034794,64]
[332575603,1721304634361,-564.22,0.00034794,64]
[332575604,1721304634373,-153.54583878,0.00034797,7]
[332575605,1721304634382,-2000.0,0.00034799,120]
[332575606,1721304634393,-867.0,0.0003484,20]
[332575607,1721304634404,-453.0,0.000349,5]
[332575608,1721304634413,-213.0,0.000349,29]
[332575609,1721304634423,-164.77839749,0.000349,2]
[332575610,1721304634432,-655.6116623,0.000349,2]
[332575611,1721304634442,-157.42110163,0.000349,2]
[332575612,1721304634452,-180.57432257,0.000349,2]
[332575613,1721304634461,-6181.2507008,0.000349,2]
[332575614,1721304634471,-152.22497455,0.00034922,7]
[332575615,1721304634481,-1029.84853362,0.0003499,5]
[332575616,1721304634490,-199.26904474,0.0003499,2]
[332575617,1721304634500,-155.16,0.0003499,2]
[332575618,1721304634510,-2402.97991178,0.0003499,5]
[332575619,1721304634520,-200.0,0.0003499,7]
[332575620,1721304634530,-199.26904474,0.0003499,2]
[332575621,1721304634539,-304.8144329,0.00034998,2]
[332575622,1721304634549,-21507.586487,0.00034998,2]
[332575623,1721304634559,-150.0,0.00034999,30]
[332575624,1721304634569,-150.0,0.00034999,30]
[332575625,1721304634579,-150.0,0.00034999,30]
[332575626,1721304634589,-150.0,0.00034999,30]
[332575627,1721304634599,-150.0,0.00034999,30]
[332575628,1721304634609,-150.0,0.00034999,30]
[332575629,1721304634619,-150.0,0.00034999,30]
[332575630,1721304634629,-150.0,0.00034999,30]
[332575631,1721304634638,-150.0,0.00034999,30]
[332575632,1721304634648,-150.0,0.00034999,30]
[332575633,1721304634658,-150.0,0.00034999,30]
[332575634,1721304634667,-150.0,0.00034999,30]
[332575635,1721304634677,-150.0,0.00034999,30]
[332575636,1721304634687,-150.0,0.00034999,30]
[332575637,1721304634696,-150.0,0.00034999,30]
[332575638,1721304634706,-150.0,0.00034999,30]
[332575639,1721304634715,-150.0,0.00034999,30]
[332575640,1721304634725,-150.0,0.00034999,30]
[332575641,1721304634735,-150.0,0.00034999,30]
[332575642,1721304634745,-150.0,0.00034999,30]
[332575643,1721304634755,-150.0,0.00034999,30]
[332575644,1721304634764,-150.0,0.00034999,30]
[332575645,1721304634774,-150.0,0.00034999,30]
[332575646,1721304634784,-150.0,0.00034999,30]
[332575647,1721304634794,-167.38284567,0.00034999,2]
[332575648,1721304634804,-713.74508962,0.00034999,2]
[332575649,1721304634814,-877.5,0.00034999,2]
[332575650,1721304634824,-500.0,0.00034999,2]
[332575651,1721304634834,-581929.86851267,0.00035,10]
[332575652,1721304635640,-2913.56941785,0.00035,10]
[332575653,1721304635679,-432.92,0.00035,10]
[332575654,1721304635691,-19051.05697284,0.00035,10]
[332575655,1721304635703,-3132.3393828,0.00035,10]
[332575656,1721304635735,-411679.36338018,0.00035,10]
[332575657,1721304635749,-385.08109045,0.00035,10]
[332575658,1721304635784,-1521.76221221,0.00035,10]
[332575709,1721304638257,-648.94187411,0.000349,8]
[332575711,1721304638267,-20270.69836658,0.00035,10]
[332575714,1721304638280,-1453.67052977,0.00035,10]
[332575717,1721304638304,-1558.26682983,0.00035,10]
[332575726,1721304639454,-599.34366363,0.00035,10]
[332575727,1721304639466,-1479.06618087,0.00035,10]
[332575728,1721304639478,-20813.72392366,0.00035,10]
[332575729,1721304639507,-354373.89870697,0.00035,10]
[332575730,1721304639519,-3705.05,0.00035,10]
[332575731,1721304639562,-1568.29552831,0.00035,10]
[332575732,1721304639574,-332.93361183,0.00035,10]
[332575733,1721304639618,-722.19529931,0.00035,10]
[332575734,1721304639730,-5604.22868825,0.00035,10]
[332575735,1721304639742,-1380.27371303,0.00035,10]
[332575736,1721304639753,-2700.1964684,0.00035,10]
[332575737,1721304639765,-347.185,0.00035,10]
[332575738,1721304639776,-562.89019478,0.00035,10]
[332575739,1721304639788,-959.41436398,0.00035,10]
[332575742,1721304642488,-3000.0,0.0003465,2]
[332575743,1721304642541,-1596.13355224,0.0003465,2]
[332575744,1721304642648,-728.22246321,0.0003465,2]
[332575746,1721304643477,-1507.29,0.0003465,2]
[332575763,1721304645635,-3762.55999994,0.0003465,2]
[332575764,1721304646366,-561.57959047,0.0003465,2]
[332575765,1721304646396,-758.18316057,0.0003465,2]
[332575766,1721304646413,-323.56997,0.0003465,2]
[332575774,1721305508560,1811476.10378417,0.00014,2]
[332575775,1721305529835,999.99837823,0.000118,2]
[332575776,1721305556300,334.11800582,0.0001358,2]
[332575777,1721305557447,2630.33508372,0.0002,30]
[332575801,1721305831605,-216.88543791,0.00014566,2]
[332575803,1721305831617,-162.48119662,0.00017925,2]
[332575804,1721305831628,-681.0,0.00017999,2]
[332575805,1721305831639,-1466.20420616,0.00018,2]
[332575806,1721305831648,-1117.29111652,0.00018,2]
[332575807,1721305831658,-1671.13234442,0.000181,2]
[332575808,1721305831668,-1213.69684516,0.00018332,2]
[332575809,1721305831680,-153.39614122,0.0001841,2]
[332575810,1721305831693,-995.24686921,0.00018432,2]
[332575811,1721305831706,-2498.91313079,0.00018432,2]
[332575812,1721305831716,-2546.04,0.00018509,2]
[332575813,1721305831727,-3035.95,0.00018509,2]
[332575814,1721305831736,-499.99,0.00018509,2]
[332575815,1721305831747,-160.96479367,0.00018668,2]
[332575816,1721305831757,-153.39614122,0.00018942,2]
[332575817,1721305831768,-1013.00774574,0.00019,2]
[332575818,1721305831779,-227.52,0.00019452,7]
[332575819,1721305831790,-293.45606719,0.0002,2]
[332575820,1721305831800,-153.39614122,0.00020447,2]
[332575821,1721305831810,-156.45325113,0.00021026,2]
[332575822,1721305831820,-153.54583878,0.00021067,2]
[332575823,1721305831832,-153.54583878,0.00021491,2]
[332575824,1721305831842,-150.75,0.00021644,2]
[332575825,1721305831852,-152.53,0.00021644,2]
[332575826,1721305831863,-1213.69684516,0.000219,3]
[332575827,1721305831873,-13478.8959906,0.00022,4]
[332575828,1721305831886,-3998.36375434,0.00022,4]
[332575829,1721305831896,-152.05,0.00022766,2]
[332575830,1721305831907,-153.39614122,0.00023053,2]
[332575831,1721305831917,-166.66666666,0.0002321,2]
[332575832,1721305831926,-153.89918918,0.00023834,2]
[332575833,1721305831936,-153.39614122,0.00023921,2]
[332575834,1721305831946,-191.79781605,0.00023972,2]
[332575835,1721305831956,-156.45325113,0.0002432,2]
[332575836,1721305831966,-1086.27284779,0.00024347,2]
[332575837,1721305831988,-202.06199785,0.00024347,2]
[332575838,1721305831999,-153.39614122,0.00024348,2]
[332575839,1721305832008,-153.39614122,0.00024514,2]
[332575840,1721305832018,-200.0,0.00024535,2]
[332575841,1721305832028,-206.93983032,0.0002457,2]
[332575842,1721305832040,-258.76851609,0.0002457,2]
[332575843,1721305832051,-863.503638,0.0002457,2]
[332575844,1721305832066,-685.05424735,0.0002457,2]
[332575845,1721305832079,-2214.66111984,0.0002457,2]
[332575846,1721305832108,-1355.5826484,0.0002457,2]
[332575847,1721305832118,-17848.05,0.00024626,2]
[332575848,1721305832127,-153.54583878,0.00024675,2]
[332575849,1721305832136,-399.57,0.00025033,2]
[332575850,1721305832145,-156.45325113,0.00025101,2]
[332575851,1721305832156,-152.22497457,0.00025574,2]
[332575852,1721305832166,-166.66666665,0.00025732,2]
[332575853,1721305832176,-167.7,0.00025814,2]
[332575854,1721305832186,-152.05,0.00025838,2]
[332575855,1721305832195,-156.0911654,0.00025867,2]
[332575856,1721305832205,-156.0911654,0.00025878,2]
[332575857,1721305832214,-1296.67,0.00025998,2]
[332575858,1721305832224,-156.09,0.00026083,2]
[332575859,1721305832234,-378.43,0.00026333,2]
[332575860,1721305832245,-189.29,0.00026441,2]
[332575861,1721305832255,-251.97,0.0002665,2]
[332575862,1721305832264,-8423.37,0.00026811,2]
[332575863,1721305832274,-500.0,0.00026993,2]
[332575864,1721305832284,-500.0,0.00027002,2]
[332575865,1721305832295,-500.0,0.00027011,2]
[332575866,1721305832304,-500.0,0.0002702,2]
[332575867,1721305832315,-500.0,0.00027029,2]
[332575868,1721305832324,-500.0,0.00027037,2]
[332575869,1721305832336,-500.0,0.00027046,2]
[332575870,1721305832346,-500.0,0.00027055,2]
[332575871,1721305832356,-500.0,0.00027064,2]
[332575872,1721305832365,-500.0,0.00027073,2]
[332575873,1721305832375,-500.0,0.00027081,2]
[332575874,1721305832385,-500.0,0.0002709,2]
[332575875,1721305832394,-500.0,0.00027099,2]
[332575876,1721305832404,-275.71,0.00027121,2]
[332575877,1721305832414,-167.0,0.00027134,2]
[332575878,1721305832424,-180.0,0.00027213,2]
[332575879,1721305832434,-173.44,0.00027271,2]
[332575880,1721305832444,-169.63,0.00027323,2]
[332575881,1721305832455,-150.20291126,0.00027674,2]
[332575882,1721305832465,-156.45325113,0.00027855,2]
[332575883,1721305832476,-153.39614122,0.0002788,2]
[332575884,1721305832487,-157.0391162,0.00027985,2]
[332575885,1721305832496,-151.42828929,0.00028038,2]
[332575886,1721305832506,-153.54583878,0.00028185,2]
[332575887,1721305832517,-156.45325113,0.00028201,2]
[332575888,1721305832527,-150.18315019,0.00028213,2]
[332575889,1721305832536,-167.0,0.00028254,2]
[332575890,1721305832546,-152.05,0.00028911,2]
[332575891,1721305832556,-156.0911654,0.00029276,2]
[332575892,1721305832565,-167.0,0.00029373,2]
[332575893,1721305832575,-166.66666666,0.00029438,2]
[332575894,1721305832589,-153.39614122,0.00029579,2]
[332575895,1721305832599,-152.22497457,0.00029621,2]
[332575896,1721305832609,-156.0911654,0.0002996,2]
[332575897,1721305832622,-156.45325113,0.00030173,7]
[332575898,1721305832632,-167.0,0.00030493,2]
[332575899,1721305832642,-275.71,0.00030511,2]
[332575900,1721305832651,-150.75,0.00030516,2]
[332575901,1721305832660,-166.66666665,0.00030691,7]
[332575902,1721305832671,-153.8991892,0.00030803,7]
[332575903,1721305832688,-156.0911654,0.00031324,7]
[332575904,1721305832698,-167.0,0.00031613,2]
[332575905,1721305832708,-204.956123,0.000318,4]
[332575906,1721305832719,-166.66666667,0.00031962,7]
[332575907,1721305832730,-818.3,0.00031973,10]
[332575908,1721305832739,-152.05,0.00031983,2]
[332575909,1721305832750,-155.37333677,0.00032041,7]
[332575910,1721305832763,-157.49799236,0.00032531,7]
[332575911,1721305832774,-150.0,0.00033,14]
[332575912,1721305832784,-152.91136509,0.0003312,7]
[332575913,1721305832794,-152.22497457,0.00033353,7]
[332575914,1721305832804,-156.0911654,0.00033599,7]
[332575915,1721305832815,-678.06,0.00033681,2]
[332575916,1721305832825,-151.56,0.00033681,2]
[332575917,1721305832840,-151.42828929,0.00033796,7]
[332575918,1721305832851,-246.43,0.00033799,120]
[332575919,1721305832862,-200.0,0.000338,7]
[332575920,1721305832871,-166.66666668,0.00033861,7]
[332575921,1721305832881,-275.71,0.00033901,2]
[332575922,1721305832891,-418.26,0.00033919,2]
[332575923,1721305832901,-9992.68620874,0.00034058,15]
[332575924,1721305832910,-2954.7151,0.00034058,2]
[332575925,1721305832920,-4177.585,0.00034058,2]
[332575926,1721305832930,-2450.5478,0.00034058,2]
[332575927,1721305832940,-1000.0,0.00034058,2]
[332575928,1721305832951,-165.7940675,0.00034146,2]
[332575929,1721305832961,-1000.0,0.00034158,2]
[332575930,1721305832971,-70816.1544,0.00034158,2]
[332575931,1721305832980,-100000.0,0.00034158,2]
[332575932,1721305832990,-153.39614122,0.00034179,7]
[332575933,1721305832999,-500.0,0.00034246,60]
[332575934,1721305833009,-1094.29,0.00034246,60]
[332575935,1721305833019,-1864.88,0.00034246,14]
[332575936,1721305833028,-1864.88,0.00034246,14]
[332575937,1721305833038,-1864.88,0.00034246,14]
[332575938,1721305833048,-1864.88,0.00034246,14]
[332575939,1721305833058,-1864.88,0.00034246,14]
[332575940,1721305833068,-1864.88,0.00034246,14]
[332575941,1721305833079,-1864.88,0.00034246,14]
[332575942,1721305833091,-1864.88,0.00034246,14]
[332575943,1721305833102,-1864.88,0.00034246,14]
[332575944,1721305833112,-1864.88,0.00034246,14]
[332575945,1721305833122,-1864.88,0.00034246,14]
[332575946,1721305833132,-1864.88,0.00034246,14]
[332575947,1721305833143,-1864.88,0.00034246,14]
[332575948,1721305833153,-1864.88,0.00034246,14]
[332575949,1721305833163,-1864.88,0.00034246,14]
[332575950,1721305833173,-1864.88,0.00034246,14]
[332575951,1721305833183,-1864.88,0.00034246,14]
[332575952,1721305833193,-1864.88,0.00034246,14]
[332575953,1721305833203,-1864.88,0.00034246,14]
[332575954,1721305833213,-1864.88,0.00034246,14]
[332575955,1721305833224,-1864.88,0.00034246,14]
[332575956,1721305833234,-1864.88,0.00034246,14]
[332575957,1721305833245,-1864.88,0.00034246,14]
[332575958,1721305833255,-1865.0,0.00034246,14]
[332575959,1721305833265,-9992.6862087,0.0003425,15]
[332575960,1721305833275,-150.0,0.00034266,2]
[332575961,1721305833287,-2000.0,0.00034357,120]
[332575962,1721305833298,-9992.6862087,0.00034443,15]
[332575963,1721305833308,-500.0,0.0003452,62]
[332575964,1721305833319,-1094.29,0.0003452,62]
[332575965,1721305833331,-500.0,0.0003455,2]
[332575966,1721305833342,-2000.0,0.00034631,120]
[332575967,1721305833352,-9992.6862087,0.00034635,15]
[332575968,1721305833363,-225.18561629,0.0003465,7]
[332575969,1721305833374,-191.3878521,0.0003465,4]
[332575970,1721305833385,-155.0,0.0003465,2]
[332575971,1721305833395,-768.63792205,0.0003465,4]
[332575972,1721305833405,-199.79938361,0.0003465,10]
[332575973,1721305833415,-2000.0,0.0003465,10]
[332575974,1721305833425,-25256.0,0.0003465,2]
[332575975,1721305833435,-3000.0,0.0003465,2]
[332575976,1721305833446,-1500.0,0.00034693,4]
[332575977,1721305833456,-7500.0,0.00034694,2]
[332575978,1721305833466,-646.41630978,0.00034719,4]
[332575979,1721305833477,-500.0,0.0003472,10]
[332575980,1721305833487,-200.0,0.0003472,10]
[332575981,1721305833497,-324.13815746,0.0003479,2]
[332575982,1721305833507,-1067.04718193,0.00034793,4]
[332575983,1721305833517,-500.0,0.00034794,64]
[332575984,1721305833528,-1094.29,0.00034794,64]
[332575985,1721305833538,-1500.0,0.00034799,14]
[332575986,1721305833548,-9992.6862087,0.00034828,15]
[332575987,1721305833558,-256.47603777,0.00034887,4]
[332575988,1721305833569,-155.0,0.00034888,4]
[332575989,1721305833580,-156.15048929,0.00034889,4]
[332575990,1721305833591,-155.61384076,0.00034889,4]
[332575991,1721305833602,-272.50011806,0.00034889,4]
[332575992,1721305833612,-500.0,0.0003489,2]
[332575993,1721305833623,-500.0,0.0003489,2]
[332575994,1721305833632,-500.0,0.0003489,2]
[332575995,1721305833642,-430.49,0.0003489,2]
[332575996,1721305833652,-500.0,0.0003489,2]
[332575997,1721305833661,-500.0,0.0003489,2]
[332575998,1721305833674,-500.0,0.0003489,2]
[332575999,1721305833687,-500.0,0.0003489,2]
[332576000,1721305833698,-324.05,0.0003489,2]
[332576001,1721305833708,-500.0,0.0003489,2]
[332576002,1721305833719,-300.0,0.0003489,4]
[332576003,1721305833730,-300.0,0.0003489,4]
[332576004,1721305833741,-355.0,0.000349,5]
[332576005,1721305833751,-2000.0,0.000349,2]
[332576006,1721305833760,-165.1825057,0.000349,2]
[332576007,1721305833771,-157.42110163,0.000349,2]
[332576008,1721305833782,-177.42557793,0.000349,7]
[332576009,1721305833792,-171.29269954,0.000349,2]
[332576010,1721305833801,-317.45848768,0.000349,2]
[332576011,1721305833812,-180.57432257,0.000349,2]
[332576012,1721305833822,-1419.6286453,0.000349,2]
[332576013,1721305833835,-167.0,0.000349,2]
[332576014,1721305833847,-2000.0,0.00034905,120]
[332576015,1721305833858,-250.0,0.00034967,4]
[332576016,1721305833868,-165.7940675,0.00034968,2]
[332576017,1721305833878,-205.76341222,0.0003499,2]
[332576018,1721305833889,-150.0,0.00034999,30]
[332576019,1721305833899,-150.0,0.00034999,30]
[332576020,1721305833909,-150.0,0.00034999,30]
[332576021,1721305833919,-150.0,0.00034999,30]
[332576022,1721305833929,-150.0,0.00034999,30]
[332576023,1721305833939,-150.0,0.00034999,30]
[332576024,1721305833948,-150.0,0.00034999,30]
[332576025,1721305833958,-150.0,0.00034999,30]
[332576026,1721305833968,-150.0,0.00034999,30]
[332576027,1721305833978,-150.0,0.00034999,30]
[332576028,1721305833988,-150.0,0.00034999,30]
[332576029,1721305833998,-150.0,0.00034999,30]
[332576030,1721305834008,-150.0,0.00034999,30]
[332576031,1721305834018,-150.0,0.00034999,30]
[332576032,1721305834028,-150.0,0.00034999,30]
[332576033,1721305834037,-150.0,0.00034999,30]
[332576034,1721305834047,-150.0,0.00034999,30]
[332576035,1721305834056,-150.0,0.00034999,30]
[332576036,1721305834066,-150.0,0.00034999,30]
[332576037,1721305834075,-150.0,0.00034999,30]
[332576038,1721305834090,-150.0,0.00034999,30]
[332576039,1721305834099,-150.0,0.00034999,30]
[332576040,1721305834109,-861.77,0.00034999,2]
[332576041,1721305834119,-227.41308538,0.00034999,7]
[332576042,1721305834129,-105016.43056281,0.00035,10]
[332576043,1721305835103,-484.32,0.00035,10]
[332576044,1721305835114,-503.022718,0.00035,10]
[332576045,1721305835137,-1096.62478645,0.00035,10]
[332576046,1721305835148,-7576.47257359,0.00035,10]
[332576047,1721305835159,-63542.1376096,0.00035,10]
[332576048,1721305835171,-586.42800353,0.00035,10]
[332576049,1721305835190,-441.2547861,0.00035,10]